[Event "Live Chess"]
[Site "Chess.com"]
[Date "2023.05.21"]
[Round "-"]
[White "Nazar_777"]
[Black "zdanevych"]
[Result "1-0"]
[WhiteElo "1563"]
[BlackElo "1510"]
[TimeControl "300"]
[EndTime "5:54:48 PDT"]
[Termination "Nazar_777 won by checkmate"]

1. e3 {[%clk 0:04:52.7]} 1... d5 {[%clk 0:04:58.7]} 2. h4 {[%clk 0:04:46.6]}
2... c5 {[%clk 0:04:52.7]} 3. a3 {[%clk 0:04:45.6]} 3... Nc6 {[%clk 0:04:51.6]}
4. c4 {[%clk 0:04:44.7]} 4... d4 {[%clk 0:04:50.1]} 5. Nf3 {[%clk 0:04:43.4]}
5... e5 {[%clk 0:04:48.5]} 6. b3 {[%clk 0:04:41.4]} 6... Bg4 {[%clk 0:04:45.4]}
7. Be2 {[%clk 0:04:40.1]} 7... Nf6 {[%clk 0:04:41.6]} 8. Bb2 {[%clk 0:04:38.3]}
8... Bxf3 {[%clk 0:04:35.4]} 9. Bxf3 {[%clk 0:04:37]} 9... e4 {[%clk 0:04:34.3]}
10. Be2 {[%clk 0:04:35]} 10... d3 {[%clk 0:04:33.6]} 11. Bf1 {[%clk 0:04:34.1]}
11... Be7 {[%clk 0:04:26.7]} 12. Nc3 {[%clk 0:04:33]} 12... a6 {[%clk
0:04:24.6]} 13. Nd5 {[%clk 0:04:30.7]} 13... O-O {[%clk 0:04:18.1]} 14. g4
{[%clk 0:04:26.9]} 14... Nxg4 {[%clk 0:04:04.1]} 15. Qxg4 {[%clk 0:04:22.5]}
15... f6 {[%clk 0:03:55.3]} 16. Rg1 {[%clk 0:04:16.3]} 16... Rf7 {[%clk
0:03:51.3]} 17. Bg2 {[%clk 0:04:12.4]} 17... Ne5 {[%clk 0:03:46.5]} 18. Qg3
{[%clk 0:04:05.3]} 18... Nf3+ {[%clk 0:03:36.8]} 19. Bxf3 {[%clk 0:04:03]} 19...
exf3 {[%clk 0:03:36.7]} 20. Qxf3 {[%clk 0:04:00.8]} 20... Bd6 {[%clk 0:03:28.8]}
21. Qg4 {[%clk 0:03:58.1]} 21... Be5 {[%clk 0:03:27.6]} 22. Bxe5 {[%clk
0:03:55.8]} 22... fxe5 {[%clk 0:03:26.1]} 23. Nf6+ {[%clk 0:03:50.5]} 23... Qxf6
{[%clk 0:03:24.2]} 24. Qg2 {[%clk 0:03:29.3]} 24... e4 {[%clk 0:03:22.3]} 25.
Rd1 {[%clk 0:03:27.4]} 25... Raf8 {[%clk 0:03:08.7]} 26. Rf1 {[%clk 0:03:24.9]}
26... Qxh4 {[%clk 0:03:04.1]} 27. b4 {[%clk 0:03:14.8]} 27... cxb4 {[%clk
0:03:02.9]} 28. axb4 {[%clk 0:03:13.5]} 28... Qe7 {[%clk 0:02:52.9]} 29. Rb1
{[%clk 0:03:09.1]} 29... Qe6 {[%clk 0:02:47.3]} 30. c5 {[%clk 0:03:06]} 30...
Rf3 {[%clk 0:02:45.1]} 31. Rg1 {[%clk 0:02:57.8]} 31... R8f7 {[%clk 0:02:39.6]}
32. Qh2 {[%clk 0:02:52.1]} 32... Qf5 {[%clk 0:02:32.4]} 33. Rf1 {[%clk
0:02:44.4]} 33... Qd5 {[%clk 0:02:28.3]} 34. b5 {[%clk 0:02:35.5]} 34... Qxc5
{[%clk 0:02:24.4]} 35. bxa6 {[%clk 0:02:33.3]} 35... bxa6 {[%clk 0:02:23.2]} 36.
Rh1 {[%clk 0:02:16.1]} 36... h6 {[%clk 0:02:15.8]} 37. Rg1 {[%clk 0:02:10.8]}
37... Qf5 {[%clk 0:02:06.5]} 38. Qxh6 {[%clk 0:02:02.7]} 38... Rxf2 {[%clk
0:02:03.1]} 39. Rb8+ {[%clk 0:02:00.1]} 39... Rf8 {[%clk 0:02:01.9]} 40. Qxg7#
{[%clk 0:01:58.8]} 1-0

[Event "Live Chess"]
[Site "Chess.com"]
[Date "2023.05.21"]
[Round "-"]
[White "Geomorph"]
[Black "LL220284LL"]
[Result "0-1"]
[WhiteElo "1277"]
[BlackElo "2281"]
[TimeControl "300"]
[EndTime "5:54:54 PDT"]
[Termination "LL220284LL won on time"]

1. e4 {[%clk 0:04:59]} 1... c5 {[%clk 0:04:58.3]} 2. Nf3 {[%clk 0:04:57.8]} 2...
d6 {[%clk 0:04:56.5]} 3. d4 {[%clk 0:04:56.3]} 3... cxd4 {[%clk 0:04:56.4]} 4.
Qxd4 {[%clk 0:04:55.2]} 4... Nc6 {[%clk 0:04:54.5]} 5. Bb5 {[%clk 0:04:54.1]}
5... Bd7 {[%clk 0:04:53.4]} 6. Bxc6 {[%clk 0:04:52.8]} 6... Bxc6 {[%clk
0:04:52.4]} 7. Nc3 {[%clk 0:04:52.7]} 7... Nf6 {[%clk 0:04:51.3]} 8. Bg5 {[%clk
0:04:51.8]} 8... h6 {[%clk 0:04:47.6]} 9. Bxf6 {[%clk 0:04:48.5]} 9... gxf6
{[%clk 0:04:47.5]} 10. O-O-O {[%clk 0:04:44.5]} 10... h5 {[%clk 0:04:45.6]} 11.
Nh4 {[%clk 0:04:39.2]} 11... Qa5 {[%clk 0:04:39.8]} 12. Kb1 {[%clk 0:04:36.8]}
12... Rg8 {[%clk 0:04:37.6]} 13. g3 {[%clk 0:04:30.6]} 13... O-O-O {[%clk
0:04:34.4]} 14. Nf5 {[%clk 0:04:17.8]} 14... Kb8 {[%clk 0:04:32.2]} 15. Rhe1
{[%clk 0:03:52.9]} 15... e6 {[%clk 0:04:27.9]} 16. Nh4 {[%clk 0:03:51.2]} 16...
Bg7 {[%clk 0:04:25.8]} 17. Qe3 {[%clk 0:03:41.8]} 17... Qc7 {[%clk 0:04:05.6]}
18. f4 {[%clk 0:03:37.6]} 18... Rc8 {[%clk 0:03:59.9]} 19. Qd3 {[%clk
0:03:30.2]} 19... Rgd8 {[%clk 0:03:56.8]} 20. Nf3 {[%clk 0:03:11.6]} 20... a6
{[%clk 0:03:51.7]} 21. Nd4 {[%clk 0:03:08.4]} 21... Be8 {[%clk 0:03:49.7]} 22.
Nb3 {[%clk 0:03:01.2]} 22... Qc4 {[%clk 0:03:44.4]} 23. Qxc4 {[%clk 0:02:52.5]}
23... Rxc4 {[%clk 0:03:44.3]} 24. Rd4 {[%clk 0:02:45.6]} 24... Rxd4 {[%clk
0:03:40.1]} 25. Nxd4 {[%clk 0:02:44.2]} 25... f5 {[%clk 0:03:39.8]} 26. Nb3
{[%clk 0:02:29.6]} 26... fxe4 {[%clk 0:03:38.2]} 27. Nxe4 {[%clk 0:02:28.5]}
27... Bc6 {[%clk 0:03:35.2]} 28. Ng5 {[%clk 0:02:25.1]} 28... Rf8 {[%clk
0:03:27]} 29. Nd2 {[%clk 0:02:08.9]} 29... Bf6 {[%clk 0:03:25.5]} 30. Nh7 {[%clk
0:01:58.5]} 30... Bg7 {[%clk 0:03:22.4]} 31. Nxf8 {[%clk 0:01:57.2]} 31... Bxf8
{[%clk 0:03:22.3]} 32. Nc4 {[%clk 0:01:51.1]} 32... Kc7 {[%clk 0:03:19.6]} 33.
Rd1 {[%clk 0:01:46]} 33... b5 {[%clk 0:03:18.1]} 34. Na5 {[%clk 0:01:39.7]}
34... Be4 {[%clk 0:03:15]} 35. Nb3 {[%clk 0:01:30]} 35... d5 {[%clk 0:03:09.8]}
36. Nd4 {[%clk 0:01:28.6]} 36... Bg7 {[%clk 0:03:06.2]} 37. Ne2 {[%clk 0:01:21]}
37... Bf3 {[%clk 0:03:04.6]} 38. Re1 {[%clk 0:01:19]} 38... Kb6 {[%clk
0:03:03.6]} 39. Ng1 {[%clk 0:01:11.7]} 39... Be4 {[%clk 0:03:02.3]} 40. Nh3
{[%clk 0:01:09.9]} 40... f6 {[%clk 0:02:57.8]} 41. Nf2 {[%clk 0:01:07.5]} 41...
Bf5 {[%clk 0:02:57.1]} 42. Nd3 {[%clk 0:01:00.3]} 42... a5 {[%clk 0:02:52.9]}
43. b3 {[%clk 0:00:55.9]} 43... Kc6 {[%clk 0:02:51.8]} 44. Kc1 {[%clk
0:00:52.6]} 44... Kd6 {[%clk 0:02:51]} 45. Kd2 {[%clk 0:00:50.3]} 45... e5
{[%clk 0:02:50.1]} 46. fxe5+ {[%clk 0:00:46.1]} 46... fxe5 {[%clk 0:02:50]} 47.
a3 {[%clk 0:00:41.4]} 47... e4 {[%clk 0:02:47.2]} 48. Nf4 {[%clk 0:00:40.2]}
48... Bh6 {[%clk 0:02:45.4]} 49. Ke3 {[%clk 0:00:38.3]} 49... Ke5 {[%clk
0:02:44.1]} 50. Rd1 {[%clk 0:00:35.9]} 50... Be6 {[%clk 0:02:43.3]} 51. Rd4
{[%clk 0:00:26.5]} 51... h4 {[%clk 0:02:38.6]} 52. b4 {[%clk 0:00:22.4]} 52...
a4 {[%clk 0:02:37.3]} 53. c3 {[%clk 0:00:19.6]} 53... Bf7 {[%clk 0:02:34.7]} 54.
Rd1 {[%clk 0:00:16.7]} 54... Bh5 {[%clk 0:02:32.6]} 55. Rd2 {[%clk 0:00:15.7]}
55... Bf7 {[%clk 0:02:31.5]} 56. Rd1 {[%clk 0:00:14.2]} 56... hxg3 {[%clk
0:02:30.8]} 57. hxg3 {[%clk 0:00:12.9]} 57... Bg5 {[%clk 0:02:30.1]} 58. Rd2
{[%clk 0:00:11.9]} 58... Kf5 {[%clk 0:02:29.1]} 59. Rf2 {[%clk 0:00:10.9]} 59...
Kg4 {[%clk 0:02:28.2]} 60. Rg2 {[%clk 0:00:06.6]} 60... Be8 {[%clk 0:02:23]} 61.
Kd4 {[%clk 0:00:03.9]} 61... Kf3 {[%clk 0:02:22.1]} 62. Rg1 {[%clk 0:00:00.6]}
62... Bf6+ {[%clk 0:02:21.1]} 0-1

[Event "Live Chess"]
[Site "Chess.com"]
[Date "2023.05.21"]
[Round "-"]
[White "JoRoSaR"]
[Black "manthanit"]
[Result "1-0"]
[WhiteElo "1690"]
[BlackElo "1086"]
[TimeControl "300"]
[EndTime "5:54:54 PDT"]
[Termination "JoRoSaR won by checkmate"]

1. e4 {[%clk 0:04:59.3]} 1... e6 {[%clk 0:04:48.3]} 2. d4 {[%clk 0:04:58.3]}
2... d6 {[%clk 0:04:46.9]} 3. b3 {[%clk 0:04:56.5]} 3... g6 {[%clk 0:04:45.3]}
4. Bb2 {[%clk 0:04:55.9]} 4... Bg7 {[%clk 0:04:44.9]} 5. Qc1 {[%clk 0:04:53.8]}
5... Ne7 {[%clk 0:04:42.6]} 6. d5 {[%clk 0:04:52.4]} 6... O-O {[%clk 0:04:39.6]}
7. Bxg7 {[%clk 0:04:50.6]} 7... Kxg7 {[%clk 0:04:39]} 8. Qb2+ {[%clk 0:04:50.3]}
8... Kg8 {[%clk 0:04:38.4]} 9. c4 {[%clk 0:04:49.6]} 9... exd5 {[%clk
0:04:34.9]} 10. exd5 {[%clk 0:04:48.7]} 10... Nf5 {[%clk 0:04:33]} 11. Bd3
{[%clk 0:04:47.9]} 11... Re8+ {[%clk 0:04:31.8]} 12. Ne2 {[%clk 0:04:47.2]}
12... c6 {[%clk 0:04:19.6]} 13. dxc6 {[%clk 0:04:45.5]} 13... Nxc6 {[%clk
0:04:18.7]} 14. O-O {[%clk 0:04:45]} 14... Be6 {[%clk 0:04:14.4]} 15. Nf4 {[%clk
0:04:42.9]} 15... Ne5 {[%clk 0:03:59.5]} 16. Nxe6 {[%clk 0:04:20.2]} 16... fxe6
{[%clk 0:03:52.6]} 17. Bxf5 {[%clk 0:04:18.7]} 17... exf5 {[%clk 0:03:51.1]} 18.
Nc3 {[%clk 0:04:16.6]} 18... Re6 {[%clk 0:03:45.8]} 19. Rad1 {[%clk 0:04:15.3]}
19... Qd7 {[%clk 0:03:44.5]} 20. Rd5 {[%clk 0:04:14.3]} 20... Rae8 {[%clk
0:03:42.5]} 21. Rfd1 {[%clk 0:04:12.6]} 21... Qe7 {[%clk 0:03:14.8]} 22. h3
{[%clk 0:04:05.6]} 22... a6 {[%clk 0:03:13.6]} 23. Qd2 {[%clk 0:04:03.5]} 23...
b5 {[%clk 0:02:49.8]} 24. cxb5 {[%clk 0:04:00.5]} 24... axb5 {[%clk 0:02:48.4]}
25. Nxb5 {[%clk 0:03:59.9]} 25... Nf7 {[%clk 0:01:03.6]} 26. Nxd6 {[%clk
0:03:55.1]} 26... Nxd6 {[%clk 0:01:01.1]} 27. Rxd6 {[%clk 0:03:54.1]} 27... Rxd6
{[%clk 0:01:00.2]} 28. Qxd6 {[%clk 0:03:53.1]} 28... Qa7 {[%clk 0:00:47.4]} 29.
a4 {[%clk 0:03:45.7]} 29... Qb7 {[%clk 0:00:35.6]} 30. Qd5+ {[%clk 0:03:17.3]}
30... Qxd5 {[%clk 0:00:33.1]} 31. Rxd5 {[%clk 0:03:17.2]} 31... Re2 {[%clk
0:00:32]} 32. a5 {[%clk 0:03:14]} 32... Rb2 {[%clk 0:00:30.2]} 33. Rb5 {[%clk
0:03:11.9]} 33... Kf7 {[%clk 0:00:28.8]} 34. a6 {[%clk 0:03:11.4]} 34... Ke6
{[%clk 0:00:25.1]} 35. a7 {[%clk 0:03:10.5]} 35... Ra2 {[%clk 0:00:24.6]} 36.
Rb7 {[%clk 0:03:09.4]} 36... Kd6 {[%clk 0:00:22.6]} 37. b4 {[%clk 0:03:07.6]}
37... Kc6 {[%clk 0:00:21.7]} 38. Rxh7 {[%clk 0:03:06.7]} 38... Kb5 {[%clk
0:00:17.7]} 39. Rb7+ {[%clk 0:03:05.2]} 39... Ka6 {[%clk 0:00:16]} 40. a8=Q#
{[%clk 0:03:03.2]} 1-0

[Event "Live Chess"]
[Site "Chess.com"]
[Date "2023.05.21"]
[Round "-"]
[White "SavagePawn7"]
[Black "RockTroll"]
[Result "0-1"]
[WhiteElo "770"]
[BlackElo "2240"]
[TimeControl "300"]
[EndTime "5:55:04 PDT"]
[Termination "RockTroll won by resignation"]

1. e4 {[%clk 0:04:55.3]} 1... d6 {[%clk 0:04:59.9]} 2. d4 {[%clk 0:04:51.1]}
2... Nf6 {[%clk 0:04:59.8]} 3. Nc3 {[%clk 0:04:47.3]} 3... e5 {[%clk 0:04:59.2]}
4. Nf3 {[%clk 0:04:23]} 4... Nbd7 {[%clk 0:04:57.2]} 5. dxe5 {[%clk 0:04:20.6]}
5... dxe5 {[%clk 0:04:55.5]} 6. Bb5 {[%clk 0:04:13.2]} 6... c6 {[%clk
0:04:34.2]} 7. Ba4 {[%clk 0:04:10.6]} 7... a5 {[%clk 0:04:30.9]} 8. Bb3 {[%clk
0:03:53.4]} 8... b5 {[%clk 0:04:27]} 9. a3 {[%clk 0:03:48]} 9... Bc5 {[%clk
0:04:24.5]} 10. Ng5 {[%clk 0:03:43.6]} 10... O-O {[%clk 0:04:22.5]} 11. O-O
{[%clk 0:03:35.5]} 11... h6 {[%clk 0:04:21.2]} 12. Nxf7 {[%clk 0:03:16.8]} 12...
Rxf7 {[%clk 0:04:19.7]} 13. Bxf7+ {[%clk 0:03:15.1]} 13... Kxf7 {[%clk
0:04:19.6]} 14. Qf3 {[%clk 0:02:58.8]} 14... Kg8 {[%clk 0:04:12.5]} 15. Be3
{[%clk 0:02:53.7]} 15... Qe7 {[%clk 0:04:06.3]} 16. Bxc5 {[%clk 0:02:50.5]}
16... Nxc5 {[%clk 0:04:05.5]} 17. Rad1 {[%clk 0:02:42.3]} 17... Bg4 {[%clk
0:04:04]} 18. Qe3 {[%clk 0:02:19.1]} 18... Bxd1 {[%clk 0:04:01.3]} 19. Rxd1
{[%clk 0:02:18.1]} 19... Ne6 {[%clk 0:03:56.1]} 20. g3 {[%clk 0:01:58]} 20...
Nd4 {[%clk 0:03:53.7]} 21. Qd2 {[%clk 0:01:48.2]} 21... Nf3+ {[%clk 0:03:51.5]}
0-1

[Event "Live Chess"]
[Site "Chess.com"]
[Date "2023.05.21"]
[Round "-"]
[White "DoYouLikeCurry"]
[Black "tpm07"]
[Result "0-1"]
[WhiteElo "1440"]
[BlackElo "1943"]
[TimeControl "300"]
[EndTime "5:55:11 PDT"]
[Termination "tpm07 won by resignation"]

1. e4 {[%clk 0:04:58.1]} 1... e5 {[%clk 0:04:57.1]} 2. Nc3 {[%clk 0:04:56.9]}
2... Nf6 {[%clk 0:04:52.4]} 3. f4 {[%clk 0:04:56]} 3... d5 {[%clk 0:04:51.5]} 4.
fxe5 {[%clk 0:04:54.9]} 4... Nxe4 {[%clk 0:04:49.7]} 5. Qf3 {[%clk 0:04:54.5]}
5... Nxc3 {[%clk 0:04:47.9]} 6. bxc3 {[%clk 0:04:54.4]} 6... c5 {[%clk
0:04:44.8]} 7. Bd3 {[%clk 0:04:49.1]} 7... Nc6 {[%clk 0:04:40.6]} 8. Bb5 {[%clk
0:04:46.5]} 8... Be6 {[%clk 0:04:35.3]} 9. d4 {[%clk 0:04:43.6]} 9... Be7 {[%clk
0:04:32]} 10. Ne2 {[%clk 0:04:41.2]} 10... O-O {[%clk 0:04:30.7]} 11. O-O {[%clk
0:04:40.3]} 11... cxd4 {[%clk 0:04:26.7]} 12. cxd4 {[%clk 0:04:35.7]} 12... Qb6
{[%clk 0:04:25.1]} 13. Bd3 {[%clk 0:04:33.9]} 13... Nxd4 {[%clk 0:04:18.1]} 14.
Nxd4 {[%clk 0:04:29.5]} 14... Qxd4+ {[%clk 0:04:16.2]} 15. Kh1 {[%clk
0:04:27.8]} 15... Qxe5 {[%clk 0:04:08.9]} 16. Qh3 {[%clk 0:04:23]} 16... Bxh3
{[%clk 0:04:06.6]} 0-1

[Event "Live Chess"]
[Site "Chess.com"]
[Date "2023.05.21"]
[Round "-"]
[White "Conradical12"]
[Black "The_Straightforward_Rook"]
[Result "1-0"]
[WhiteElo "1584"]
[BlackElo "1916"]
[TimeControl "300"]
[EndTime "5:55:19 PDT"]
[Termination "Conradical12 won by resignation"]

1. e4 {[%clk 0:04:57.2]} 1... e5 {[%clk 0:04:56.7]} 2. Nf3 {[%clk 0:04:54.7]}
2... Nc6 {[%clk 0:04:55.4]} 3. Bc4 {[%clk 0:04:52.6]} 3... Nf6 {[%clk
0:04:53.9]} 4. O-O {[%clk 0:04:50.8]} 4... Be7 {[%clk 0:04:50.4]} 5. Nc3 {[%clk
0:04:48.8]} 5... O-O {[%clk 0:04:47.3]} 6. d3 {[%clk 0:04:47.9]} 6... d6 {[%clk
0:04:44.8]} 7. Be3 {[%clk 0:04:45.6]} 7... Na5 {[%clk 0:04:42.5]} 8. Bb3 {[%clk
0:04:43.8]} 8... c6 {[%clk 0:04:40.4]} 9. a3 {[%clk 0:04:39.3]} 9... Nxb3 {[%clk
0:04:39.4]} 10. cxb3 {[%clk 0:04:38.3]} 10... h6 {[%clk 0:04:38.4]} 11. Rc1
{[%clk 0:04:35.6]} 11... Nh7 {[%clk 0:04:30.9]} 12. d4 {[%clk 0:04:33.5]} 12...
Bf6 {[%clk 0:04:23]} 13. dxe5 {[%clk 0:04:30.6]} 13... dxe5 {[%clk 0:04:22.6]}
14. Bc5 {[%clk 0:04:24.9]} 14... Qxd1 {[%clk 0:04:16.9]} 15. Rcxd1 {[%clk
0:04:19.7]} 15... Re8 {[%clk 0:04:16.8]} 16. b4 {[%clk 0:04:14.4]} 16... b6
{[%clk 0:04:11.8]} 17. Be3 {[%clk 0:04:11.3]} 17... Bg4 {[%clk 0:04:10.7]} 18.
Rd6 {[%clk 0:04:08.3]} 18... Rac8 {[%clk 0:04:08.8]} 19. b5 {[%clk 0:03:55.1]}
19... Bxf3 {[%clk 0:04:03.6]} 20. gxf3 {[%clk 0:03:50.3]} 20... cxb5 {[%clk
0:04:03]} 21. Nxb5 {[%clk 0:03:48]} 21... Re7 {[%clk 0:03:59.7]} 22. Rfd1 {[%clk
0:03:32.1]} 22... Nf8 {[%clk 0:03:57.7]} 23. Bxh6 {[%clk 0:03:29.3]} 23... Ne6
{[%clk 0:03:51.2]} 24. Be3 {[%clk 0:03:20.9]} 24... Bg5 {[%clk 0:03:37.9]} 25.
Bxg5 {[%clk 0:03:16.1]} 25... Nxg5 {[%clk 0:03:37.8]} 26. Kg2 {[%clk 0:03:02.1]}
1-0

[Event "Live Chess"]
[Site "Chess.com"]
[Date "2023.05.21"]
[Round "-"]
[White "Ferrarifan27"]
[Black "KeithArkell"]
[Result "0-1"]
[WhiteElo "2070"]
[BlackElo "2476"]
[TimeControl "300"]
[EndTime "5:55:25 PDT"]
[Termination "KeithArkell won by resignation"]

1. e4 {[%clk 0:04:59.2]} 1... e6 {[%clk 0:04:58]} 2. d4 {[%clk 0:04:57.9]} 2...
d5 {[%clk 0:04:57.4]} 3. e5 {[%clk 0:04:57.3]} 3... c5 {[%clk 0:04:56.1]} 4. c3
{[%clk 0:04:56.7]} 4... Nc6 {[%clk 0:04:54.9]} 5. Nf3 {[%clk 0:04:55.4]} 5...
Nge7 {[%clk 0:04:54.1]} 6. a3 {[%clk 0:04:51]} 6... c4 {[%clk 0:04:52.1]} 7. Be2
{[%clk 0:04:49.5]} 7... Na5 {[%clk 0:04:50]} 8. Nbd2 {[%clk 0:04:47.1]} 8... Bd7
{[%clk 0:04:49]} 9. O-O {[%clk 0:04:44.9]} 9... Qb6 {[%clk 0:04:48.1]} 10. Re1
{[%clk 0:04:39]} 10... O-O-O {[%clk 0:04:46.5]} 11. Ng5 {[%clk 0:04:33.4]} 11...
Be8 {[%clk 0:04:45]} 12. Rb1 {[%clk 0:04:22.2]} 12... h6 {[%clk 0:04:43.9]} 13.
Ngf3 {[%clk 0:04:18.4]} 13... Nb3 {[%clk 0:04:40.3]} 14. Nxb3 {[%clk 0:04:16.5]}
14... Ba4 {[%clk 0:04:39.3]} 15. Qd2 {[%clk 0:04:14.2]} 15... Bxb3 {[%clk
0:04:28.6]} 16. Qf4 {[%clk 0:04:11.2]} 16... Nf5 {[%clk 0:04:24.9]} 17. Be3
{[%clk 0:03:55.6]} 17... g5 {[%clk 0:04:23.5]} 18. Qg4 {[%clk 0:03:54.1]} 18...
Be7 {[%clk 0:04:22.3]} 19. Nd2 {[%clk 0:03:38.7]} 19... Bc2 {[%clk 0:04:20.2]}
20. Rbc1 {[%clk 0:03:37.1]} 20... Nxe3 {[%clk 0:04:17.8]} 21. fxe3 {[%clk
0:03:35.4]} 21... Bf5 {[%clk 0:04:16.6]} 22. Qh5 {[%clk 0:03:30.8]} 22... Bg6
{[%clk 0:04:15.5]} 23. Qf3 {[%clk 0:03:29]} 23... Qxb2 {[%clk 0:04:13]} 24. a4
{[%clk 0:03:25.9]} 24... Qxd2 {[%clk 0:04:11]} 0-1

[Event "Live Chess"]
[Site "Chess.com"]
[Date "2023.05.21"]
[Round "-"]
[White "whitedjohn"]
[Black "quantum_void"]
[Result "1-0"]
[WhiteElo "1664"]
[BlackElo "1499"]
[TimeControl "300"]
[EndTime "5:55:37 PDT"]
[Termination "whitedjohn won by resignation"]

1. e4 {[%clk 0:04:58.1]} 1... e6 {[%clk 0:04:57.6]} 2. d4 {[%clk 0:04:56.5]}
2... d5 {[%clk 0:04:57.2]} 3. Nc3 {[%clk 0:04:55]} 3... Nf6 {[%clk 0:04:55.6]}
4. Bg5 {[%clk 0:04:53.4]} 4... dxe4 {[%clk 0:04:52.8]} 5. Nxe4 {[%clk
0:04:52.2]} 5... Be7 {[%clk 0:04:52.5]} 6. Nxf6+ {[%clk 0:04:51.6]} 6... Bxf6
{[%clk 0:04:51.3]} 7. Bxf6 {[%clk 0:04:51.1]} 7... Qxf6 {[%clk 0:04:50.9]} 8.
Nf3 {[%clk 0:04:50.6]} 8... b6 {[%clk 0:04:45.5]} 9. Bd3 {[%clk 0:04:49.8]} 9...
Bb7 {[%clk 0:04:44.5]} 10. Qe2 {[%clk 0:04:49.4]} 10... O-O {[%clk 0:04:42]} 11.
Be4 {[%clk 0:04:48.2]} 11... Bxe4 {[%clk 0:04:38.4]} 12. Qxe4 {[%clk 0:04:47.2]}
12... Na6 {[%clk 0:04:34.9]} 13. O-O-O {[%clk 0:04:45]} 13... c5 {[%clk
0:04:29.1]} 14. Qe5 {[%clk 0:04:40.1]} 14... Qh6+ {[%clk 0:04:25.3]} 15. Qg5
{[%clk 0:04:38.4]} 15... Qxg5+ {[%clk 0:04:22.5]} 16. Nxg5 {[%clk 0:04:37.3]}
16... Nb4 {[%clk 0:04:20.2]} 17. dxc5 {[%clk 0:04:18.3]} 17... bxc5 {[%clk
0:04:10.9]} 18. a3 {[%clk 0:04:16.4]} 18... Nc6 {[%clk 0:04:09.8]} 19. f4 {[%clk
0:04:07.6]} 19... Nd4 {[%clk 0:03:57.1]} 20. Rhe1 {[%clk 0:03:59.4]} 20... h6
{[%clk 0:03:55.6]} 21. Ne4 {[%clk 0:03:57.1]} 21... Rac8 {[%clk 0:03:52.1]} 22.
c3 {[%clk 0:03:31.6]} 22... Nc6 {[%clk 0:03:35.8]} 23. Rd7 {[%clk 0:03:27.1]}
23... a5 {[%clk 0:03:22.7]} 24. Red1 {[%clk 0:03:23.9]} 24... a4 {[%clk
0:03:17.7]} 25. Nxc5 {[%clk 0:03:21.3]} 25... Na5 {[%clk 0:03:15.7]} 26. Nxa4
{[%clk 0:03:17.7]} 26... Nb3+ {[%clk 0:03:06]} 27. Kc2 {[%clk 0:03:16.1]} 27...
Nc5 {[%clk 0:03:05.5]} 28. Nxc5 {[%clk 0:03:14.2]} 28... Rxc5 {[%clk 0:03:05.1]}
29. b4 {[%clk 0:03:08.3]} 29... Rc4 {[%clk 0:03:02.7]} 30. R1d4 {[%clk 0:03:03]}
30... Rc6 {[%clk 0:02:54.5]} 31. c4 {[%clk 0:02:58.8]} 31... Rfc8 {[%clk
0:02:53.6]} 32. c5 {[%clk 0:02:57.3]} 32... Ra6 {[%clk 0:02:49.8]} 33. Kb3
{[%clk 0:02:55.7]} 33... Rca8 {[%clk 0:02:48.5]} 34. Rd8+ {[%clk 0:02:49.7]}
34... Kh7 {[%clk 0:02:46.8]} 35. Rxa8 {[%clk 0:02:48]} 35... Rxa8 {[%clk
0:02:45.3]} 36. b5 {[%clk 0:02:46]} 1-0

[Event "Live Chess"]
[Site "Chess.com"]
[Date "2023.05.21"]
[Round "-"]
[White "Olisingapore"]
[Black "romchyk1219"]
[Result "1-0"]
[WhiteElo "1783"]
[BlackElo "646"]
[TimeControl "300"]
[EndTime "5:55:44 PDT"]
[Termination "Olisingapore won by resignation"]

1. d4 {[%clk 0:04:58.4]} 1... Nf6 {[%clk 0:04:57.3]} 2. c4 {[%clk 0:04:57.9]}
2... g6 {[%clk 0:04:56.3]} 3. g3 {[%clk 0:04:57.4]} 3... Bg7 {[%clk 0:04:55.2]}
4. Bg2 {[%clk 0:04:57.3]} 4... O-O {[%clk 0:04:51.5]} 5. Nc3 {[%clk 0:04:57.2]}
5... d6 {[%clk 0:04:50.4]} 6. Nf3 {[%clk 0:04:56.7]} 6... Bf5 {[%clk 0:04:47.8]}
7. O-O {[%clk 0:04:54]} 7... Nc6 {[%clk 0:04:40.7]} 8. Re1 {[%clk 0:04:51.5]}
8... Ng4 {[%clk 0:04:36]} 9. h3 {[%clk 0:04:46.7]} 9... Nf6 {[%clk 0:04:32]} 10.
e4 {[%clk 0:04:45.1]} 10... Bd7 {[%clk 0:04:21.5]} 11. d5 {[%clk 0:04:42.1]}
11... Nb4 {[%clk 0:04:17.8]} 12. a3 {[%clk 0:04:34.5]} 12... Na6 {[%clk
0:04:15.2]} 13. e5 {[%clk 0:04:24.6]} 13... dxe5 {[%clk 0:04:13.6]} 14. Nxe5
{[%clk 0:04:21.7]} 14... Bc8 {[%clk 0:04:04.7]} 15. Bg5 {[%clk 0:04:16.3]} 15...
Nc5 {[%clk 0:03:57.5]} 16. Qe2 {[%clk 0:04:13.6]} 16... Bf5 {[%clk 0:03:42.9]}
17. g4 {[%clk 0:04:03.6]} 17... Bd3 {[%clk 0:03:41]} 18. Nxd3 {[%clk 0:04:00.4]}
18... Nxd3 {[%clk 0:03:39.5]} 19. Qxd3 {[%clk 0:04:00.3]} 19... Qd6 {[%clk
0:03:25.9]} 20. Nb5 {[%clk 0:03:50.2]} 20... Qc5 {[%clk 0:03:17.4]} 21. Be3
{[%clk 0:03:38]} 1-0